[Event "Masters Tournament (MTO)"]
[Site "Biel, Switzerland"]
[Date "2026.07.16"]
[Round "4.35"]
[White "Scherler, Julius"]
[Black "Monteverde, Jonathan"]
[Result "1/2-1/2"]
[TimeControl "100+30+30sec/move"]
[WhiteTitle "-"]
[BlackTitle "-"]
[WhiteFideId "1337947"]
[BlackFideId "1314580"]
[WhiteElo "1941"]
[BlackElo "2098"]

1. e4 {[%clk 01:40:47]} {[%emt 00:00:10]} c5 {[%clk 01:40:58]} {[%emt
00:00:05]} 2. Nf3 {[%clk 01:40:35]} {[%emt 00:00:41]} d6 {[%clk 01:41:22]}
{[%emt 00:00:06]} 3. d4 {[%clk 01:40:48]} {[%emt 00:00:17]} cxd4 {[%clk
01:41:47]} {[%emt 00:00:06]} 4. Qxd4 {[%clk 01:41:09]} Nc6 {[%clk 01:41:24]}
{[%emt 00:01:01]} 5. Qe3 {[%clk 01:41:23]} {[%emt 00:00:16]} Nf6 {[%clk
01:36:28]} {[%emt 00:05:26]} 6. h3 {[%clk 01:41:30]} {[%emt 00:00:23]} g6
{[%clk 01:35:48]} {[%emt 00:01:11]} 7. Be2 {[%clk 01:41:42]} {[%emt 00:00:17]}
Bg7 {[%clk 01:35:29]} {[%emt 00:00:48]} 8. O-O {[%clk 01:41:45]} {[%emt
00:00:27]} O-O {[%clk 01:35:50]} {[%emt 00:00:11]} 9. Rd1 {[%clk 01:42:13]}
{[%emt 00:00:01]} Qb6 {[%clk 01:28:50]} {[%emt 00:07:30]} 10. Qf4 {[%clk
01:32:12]} {[%emt 00:10:31]} Nh5 {[%clk 01:19:41]} {[%emt 00:09:39]} 11. Qd2
{[%clk 01:30:40]} {[%emt 00:02:02]} Bxb2 {[%clk 01:17:09]} {[%emt 00:03:02]} 12.
Bxb2 {[%clk 01:30:56]} {[%emt 00:00:14]} Qxb2 {[%clk 01:17:27]} {[%emt
00:00:12]} 13. Nc3 {[%clk 01:31:04]} {[%emt 00:00:22]} Nf6 {[%clk 00:56:19]}
{[%emt 00:21:37]} 14. a3 {[%clk 01:14:06]} {[%emt 00:17:29]} Qb6 {[%clk
00:53:53]} {[%emt 00:02:57]} 15. Qh6 {[%clk 01:12:27]} {[%emt 00:02:08]} Qc5
{[%clk 00:32:41]} {[%emt 00:21:42]} 16. Nd5 {[%clk 01:09:22]} {[%emt 00:03:36]}
Nxe4 {[%clk 00:32:50]} {[%emt 00:00:20]} 17. Bd3 {[%clk 00:57:52]} {[%emt
00:12:00]} Qxd5 {[%clk 00:31:56]} {[%emt 00:01:24]} 18. Bxe4 {[%clk 00:58:20]}
{[%emt 00:00:02]} Qh5 {[%clk 00:32:06]} {[%emt 00:00:20]} 19. Qe3 {[%clk
00:52:03]} {[%emt 00:06:46]} Be6 {[%clk 00:27:50]} {[%emt 00:04:47]} 20. Rab1
{[%clk 00:43:38]} {[%emt 00:08:56]} d5 {[%clk 00:15:27]} {[%emt 00:12:53]} 21.
Rb5 {[%clk 00:33:50]} {[%emt 00:10:18]} a6 {[%clk 00:12:42]} {[%emt 00:03:15]}
22. Rc5 {[%clk 00:34:01]} {[%emt 00:00:18]} d4 {[%clk 00:12:28]} {[%emt
00:00:44]} 23. Qg5 {[%clk 00:33:37]} {[%emt 00:00:55]} Qxg5 {[%clk 00:12:48]}
{[%emt 00:00:10]} 24. Nxg5 {[%clk 00:34:05]} {[%emt 00:00:01]} Bd7 {[%clk
00:13:02]} {[%emt 00:00:16]} 25. c3 {[%clk 00:33:47]} {[%emt 00:00:48]} Rfd8
{[%clk 00:10:17]} {[%emt 00:03:15]} 26. cxd4 {[%clk 00:33:01]} {[%emt
00:01:17]} Be8 {[%clk 00:10:13]} {[%emt 00:00:33]} 27. Rb1 {[%clk 00:28:29]}
{[%emt 00:05:02]} Nxd4 {[%clk 00:04:30]} {[%emt 00:06:13]} 28. Rxb7 {[%clk
00:28:28]} {[%emt 00:00:32]} h6 {[%clk 00:02:48]} {[%emt 00:02:12]} 29. Nf3
{[%clk 00:26:30]} {[%emt 00:02:27]} e6 {[%clk 00:02:46]} {[%emt 00:00:32]} 30.
Rb6 {[%clk 00:14:27]} {[%emt 00:12:33]} Nxf3+ {[%clk 00:01:22]} {[%emt
00:01:54]} 31. Bxf3 {[%clk 00:14:53]} {[%emt 00:00:04]} Ra7 {[%clk 00:01:26]}
{[%emt 00:00:27]} 32. Ra5 {[%clk 00:15:05]} {[%emt 00:00:18]} Kg7 {[%clk
00:00:46]} {[%emt 00:01:10]} 33. Raxa6 {[%clk 00:14:33]} {[%emt 00:01:00]} Rxa6
{[%clk 00:01:11]} {[%emt 00:00:07]} 34. Rxa6 {[%emt 00:00:17]} Rd4 {[%clk
00:01:27]} 35. Ra8 {[%clk 00:14:13]} {[%emt 00:01:17]} Bb5 {[%clk 00:01:45]}
{[%emt 00:00:12]} 36. Rb8 {[%clk 00:12:19]} {[%emt 00:02:23]} Ba4 {[%clk
00:01:20]} {[%emt 00:00:55]} 37. Rb2 {[%clk 00:11:39]} {[%emt 00:01:10]} Rd3
{[%clk 00:00:57]} {[%emt 00:00:53]} 38. Ra2 {[%clk 00:11:54]} {[%emt 00:00:15]}
Kf6 {[%clk 00:00:43]} {[%emt 00:00:44]} 39. Kf1 {[%clk 00:11:39]} {[%emt
00:00:44]} Ke5 {[%clk 00:00:58]} {[%emt 00:00:16]} 40. Ke2 {[%clk 00:02:47]}
{[%emt 00:09:23]} Kd4 {[%clk 00:01:10]} {[%emt 00:00:17]} 41. Rd2 {[%clk
00:24:41]} {[%emt 00:08:37]} Rxd2+ {[%clk 00:30:26]} {[%emt 00:01:13]} 42. Kxd2
{[%clk 00:24:12]} {[%emt 00:00:59]} f5 {[%clk 00:26:32]} {[%emt 00:04:23]} 43.
Bb7 {[%clk 00:19:12]} {[%emt 00:05:30]} e5 {[%clk 00:26:07]} {[%emt 00:00:57]}
44. Bc8 {[%clk 00:16:55]} {[%emt 00:02:46]} f4 {[%clk 00:22:53]} {[%emt
00:03:44]} 45. h4 {[%clk 00:14:33]} {[%emt 00:02:51]} e4 {[%clk 00:14:07]}
{[%emt 00:09:17]} 46. Ba6 {[%clk 00:08:50]} {[%emt 00:06:13]} Bd7 {[%clk
00:12:46]} {[%emt 00:01:50]} 47. Bb7 {[%clk 00:07:30]} {[%emt 00:01:51]} Bb5
{[%clk 00:12:33]} {[%emt 00:00:43]} 48. g3 {[%clk 00:05:54]} {[%emt 00:02:07]}
fxg3 {[%clk 00:09:49]} {[%emt 00:03:13]} 49. fxg3 {[%clk 00:06:23]} {[%emt
00:00:01]} e3+ {[%clk 00:10:02]} {[%emt 00:00:17]} 50. Ke1 {[%clk 00:06:51]}
{[%emt 00:00:02]} Kc3 {[%clk 00:10:10]} {[%emt 00:00:22]} 51. Bf3 {[%clk
00:06:18]} {[%emt 00:01:03]} Kd4 {[%clk 00:08:36]} {[%emt 00:02:04]} 52. Be2
{[%clk 00:04:33]} {[%emt 00:02:15]} Ba4 {[%clk 00:09:00]} {[%emt 00:00:06]} 53.
Bf3 {[%clk 00:04:56]} {[%emt 00:00:06]} Kd3 {[%clk 00:09:17]} {[%emt 00:00:14]}
54. Bd1 {[%clk 00:03:17]} {[%emt 00:02:09]} Bc6 {[%clk 00:09:20]} {[%emt
00:00:27]} 55. a4 {[%clk 00:02:25]} {[%emt 00:01:23]} Ke4 {[%clk 00:09:22]}
{[%emt 00:00:28]} 56. a5 {[%clk 00:02:37]} {[%emt 00:00:17]} g5 {[%clk
00:08:35]} {[%emt 00:01:17]} 57. hxg5 {[%clk 00:02:47]} {[%emt 00:00:20]} hxg5
{[%clk 00:08:58]} {[%emt 00:00:07]} 58. a6 {[%clk 00:03:05]} {[%emt 00:00:13]}
Bb5 {[%clk 00:09:05]} {[%emt 00:00:23]} 59. a7 {[%clk 00:02:41]} {[%emt
00:00:54]} Bc6 {[%clk 00:09:28]} {[%emt 00:00:06]} 60. Ba4 {[%clk 00:01:47]}
{[%emt 00:01:24]} Bb7 {[%clk 00:09:30]} {[%emt 00:00:28]} 61. Ke2 {[%clk
00:01:38]} {[%emt 00:00:38]} Kd4 {[%clk 00:08:40]} {[%emt 00:01:21]} 62. Be8
{[%clk 00:01:01]} {[%emt 00:01:07]} Ba6+ {[%clk 00:08:14]} {[%emt 00:00:56]} 63.
Ke1 {[%clk 00:01:18]} {[%emt 00:00:13]} Bb7 {[%clk 00:08:39]} {[%emt 00:00:06]}
64. Bh5 {[%clk 00:01:23]} {[%emt 00:00:24]} Ke4 {[%clk 00:08:42]} {[%emt
00:00:27]} 65. Ke2 {[%clk 00:01:21]} {[%emt 00:00:33]} Ba6+ {[%clk 00:09:06]}
{[%emt 00:00:06]} 66. Ke1 {[%clk 00:01:28]} {[%emt 00:00:22]} Bb7 {[%clk
00:09:32]} {[%emt 00:00:05]} 67. Be2 {[%clk 00:01:06]} {[%emt 00:00:51]} Kd4
{[%clk 00:09:16]} {[%emt 00:00:46]} 68. Ba6 {[%clk 00:01:04]} {[%emt 00:00:32]}
Bf3 {[%clk 00:09:27]} {[%emt 00:00:19]} 69. Be2 {[%clk 00:01:18]} {[%emt
00:00:17]} Bb7 {[%clk 00:09:50]} {[%emt 00:00:06]} 70. Ba6 {[%clk 00:01:25]}
{[%emt 00:00:23]} Bf3 {[%clk 00:10:15]} {[%emt 00:00:05]} 71. Be2 {[%clk
00:01:34]} {[%emt 00:00:21]} Bb7 {[%clk 00:10:02]} {[%emt 00:00:05]} 1/2-1/2

[Event "Masters Tournament (MTO)"]
[Site "Biel, Switzerland"]
[Date "2026.07.16"]
[Round "4.36"]
[White "Schmidt, Florian Pascal"]
[Black "Jelicic, Hugo"]
[Result "0-1"]
[TimeControl "100+30+30sec/move"]
[WhiteTitle "-"]
[BlackTitle "-"]
[WhiteFideId "16256840"]
[BlackFideId "1349040"]
[WhiteElo "2095"]
[BlackElo "1907"]

1. e4 {[%clk 01:40:59]} c6 {[%clk 01:40:56]} {[%emt 00:00:03]} 2. d4 {[%clk
01:41:24]} {[%emt 00:00:04]} d5 {[%clk 01:41:22]} {[%emt 00:00:05]} 3. Nc3
{[%clk 01:41:39]} {[%emt 00:00:14]} dxe4 {[%clk 01:41:25]} {[%emt 00:00:27]} 4.
Nxe4 {[%clk 01:42:03]} {[%emt 00:00:06]} Bf5 {[%clk 01:41:46]} {[%emt
00:00:09]} 5. Ng3 {[%clk 01:42:26]} {[%emt 00:00:07]} Bg6 {[%clk 01:42:14]}
{[%emt 00:00:02]} 6. N1e2 {[%clk 01:41:36]} {[%emt 00:01:20]} Nf6 {[%clk
01:38:54]} {[%emt 00:03:50]} 7. h4 {[%clk 01:40:37]} {[%emt 00:01:29]} Nh5
{[%clk 01:34:40]} {[%emt 00:04:44]} 8. Qd2 {[%clk 01:32:19]} {[%emt 00:08:48]}
Nxg3 {[%clk 01:34:43]} {[%emt 00:00:27]} 9. Nxg3 {[%clk 01:32:29]} {[%emt
00:00:20]} h6 {[%clk 01:34:56]} {[%emt 00:00:18]} 10. h5 {[%clk 01:32:25]}
{[%emt 00:00:34]} Bh7 {[%clk 01:35:19]} {[%emt 00:00:07]} 11. Be2 {[%clk
01:30:39]} {[%emt 00:02:15]} e6 {[%clk 01:33:56]} {[%emt 00:01:53]} 12. Bf3
{[%clk 01:25:35]} {[%emt 00:05:34]} Nd7 {[%clk 01:31:07]} {[%emt 00:03:20]} 13.
c4 {[%clk 01:23:38]} {[%emt 00:02:25]} Nf6 {[%clk 01:26:30]} {[%emt 00:05:09]}
14. O-O {[%clk 01:22:30]} {[%emt 00:01:36]} Be7 {[%clk 01:10:59]} {[%emt
00:16:03]} 15. Qc3 {[%clk 01:18:23]} {[%emt 00:04:37]} Qc7 {[%clk 01:08:54]}
{[%emt 00:02:35]} 16. Re1 {[%clk 01:13:00]} {[%emt 00:05:52]} Rd8 {[%clk
01:07:28]} {[%emt 00:01:56]} 17. Bd2 {[%clk 00:57:09]} {[%emt 00:16:21]} O-O
{[%clk 01:00:27]} {[%emt 00:07:31]} 18. Rad1 {[%clk 00:53:04]} {[%emt
00:04:35]} Qb6 {[%clk 00:55:55]} {[%emt 00:05:03]} 19. c5 {[%clk 00:39:41]}
{[%emt 00:13:52]} Qc7 {[%clk 00:54:46]} {[%emt 00:01:39]} 20. Re5 {[%clk
00:39:36]} {[%emt 00:00:35]} Nd7 {[%clk 00:42:21]} {[%emt 00:12:54]} 21. Ree1
{[%clk 00:39:24]} {[%emt 00:00:42]} e5 {[%clk 00:37:56]} {[%emt 00:04:56]} 22.
dxe5 {[%clk 00:38:19]} {[%emt 00:01:35]} Nxc5 {[%clk 00:37:35]} {[%emt
00:00:52]} 23. Bc1 {[%clk 00:35:13]} {[%emt 00:03:35]} Nd3 {[%clk 00:29:16]}
{[%emt 00:08:49]} 24. Re2 {[%emt 00:12:15]} Bb4 {[%clk 00:20:29]} 25. Qb3
{[%clk 00:33:11]} {[%emt 00:00:03]} Nc5 {[%clk 00:19:32]} {[%emt 00:01:28]} 26.
Rxd8 {[%clk 00:32:07]} {[%emt 00:01:34]} Nxb3 {[%clk 00:19:56]} {[%emt
00:00:07]} 27. Rxf8+ {[%clk 00:32:35]} {[%emt 00:00:01]} Kxf8 {[%clk 00:15:09]}
{[%emt 00:05:17]} 28. axb3 {[%clk 00:33:03]} {[%emt 00:00:02]} Qa5 {[%clk
00:13:35]} {[%emt 00:02:04]} 29. Ne4 {[%clk 00:29:46]} {[%emt 00:03:46]} Qa1
{[%clk 00:13:13]} {[%emt 00:00:53]} 30. Rc2 {[%clk 00:30:14]} {[%emt 00:00:01]}
Bxe4 {[%clk 00:13:30]} {[%emt 00:00:14]} 31. Bxe4 {[%clk 00:30:39]} {[%emt
00:00:05]} Bd2 {[%clk 00:13:52]} {[%emt 00:00:08]} 0-1

[Event "Masters Tournament (MTO)"]
[Site "Biel, Switzerland"]
[Date "2026.07.16"]
[Round "4.37"]
[White "Fattori Dittmar, Luca"]
[Black "Bucher, Dominic"]
[Result "1/2-1/2"]
[TimeControl "100+30+30sec/move"]
[WhiteTitle "-"]
[BlackTitle "-"]
[WhiteFideId "34678883"]
[BlackFideId "1353144"]
[WhiteElo "1840"]
[BlackElo "2078"]

1. e4 {[%clk 01:40:51]} {[%emt 00:00:07]} e6 {[%clk 01:40:51]} {[%emt
00:00:09]} 2. d4 {[%clk 01:41:10]} {[%emt 00:00:11]} d5 {[%clk 01:41:16]}
{[%emt 00:00:06]} 3. exd5 {[%clk 01:40:03]} {[%emt 00:01:37]} exd5 {[%clk
01:41:32]} {[%emt 00:00:14]} 4. Nf3 {[%clk 01:40:23]} {[%emt 00:00:10]} Bd6
{[%clk 01:41:51]} {[%emt 00:00:10]} 5. Nc3 {[%clk 01:40:27]} {[%emt 00:00:26]}
c6 {[%clk 01:42:11]} {[%emt 00:00:11]} 6. Bd3 {[%clk 01:40:50]} {[%emt
00:00:07]} Ne7 {[%clk 01:42:32]} {[%emt 00:00:09]} 7. O-O {[%clk 01:40:51]}
{[%emt 00:00:28]} O-O {[%clk 01:42:45]} {[%emt 00:00:17]} 8. Ne2 {[%clk
01:40:48]} {[%emt 00:00:34]} Bf5 {[%clk 01:41:53]} {[%emt 00:01:21]} 9. Bxf5
{[%clk 01:40:51]} {[%emt 00:00:28]} Nxf5 {[%clk 01:42:12]} {[%emt 00:00:11]} 10.
Qd3 {[%clk 01:41:10]} {[%emt 00:00:11]} Ne7 {[%clk 01:39:11]} {[%emt 00:03:31]}
11. Bf4 {[%clk 01:41:25]} {[%emt 00:00:15]} Ng6 {[%clk 01:39:24]} {[%emt
00:00:17]} 12. Bxd6 {[%clk 01:37:19]} {[%emt 00:04:36]} Qxd6 {[%clk 01:39:41]}
{[%emt 00:00:12]} 13. Rfe1 {[%clk 01:37:11]} {[%emt 00:00:38]} Nd7 {[%clk
01:39:06]} {[%emt 00:01:05]} 14. c3 {[%clk 01:34:29]} {[%emt 00:03:13]} Rfe8
{[%clk 01:39:00]} {[%emt 00:00:36]} 15. Ng3 {[%clk 01:34:10]} {[%emt 00:00:48]}
Nf6 {[%clk 01:35:56]} {[%emt 00:03:34]} 16. Qf5 {[%clk 01:28:43]} {[%emt
00:05:58]} Qc7 {[%clk 01:25:50]} {[%emt 00:10:35]} 17. h3 {[%clk 01:23:21]}
{[%emt 00:05:53]} Qb6 {[%clk 01:22:32]} {[%emt 00:03:48]} 18. Qc2 {[%clk
01:23:03]} {[%emt 00:00:47]} a5 {[%clk 01:18:21]} {[%emt 00:04:42]} 19. a4
{[%clk 01:21:46]} {[%emt 00:01:47]} h6 {[%clk 01:10:43]} {[%emt 00:08:08]} 20.
Rad1 {[%clk 01:18:39]} {[%emt 00:03:36]} Qc7 {[%clk 01:09:32]} {[%emt
00:01:41]} 21. Qf5 {[%clk 01:17:04]} {[%emt 00:02:02]} Rxe1+ {[%clk 01:05:31]}
{[%emt 00:04:35]} 22. Rxe1 {[%clk 01:17:25]} {[%emt 00:00:09]} Re8 {[%clk
01:05:51]} {[%emt 00:00:10]} 23. Rxe8+ {[%clk 01:16:44]} {[%emt 00:01:10]} Nxe8
{[%clk 01:06:11]} {[%emt 00:00:10]} 24. Qc2 {[%clk 01:13:20]} {[%emt 00:03:53]}
Nd6 {[%clk 01:05:15]} {[%emt 00:01:27]} 25. Nf5 {[%clk 01:13:27]} {[%emt
00:00:24]} Ne4 {[%clk 01:03:52]} {[%emt 00:01:52]} 26. c4 {[%clk 01:10:42]}
{[%emt 00:03:16]} Nf6 {[%clk 00:47:15]} {[%emt 00:17:06]} 27. Ne3 {[%clk
01:08:24]} {[%emt 00:02:48]} 1/2-1/2

[Event "Masters Tournament (MTO)"]
[Site "Biel, Switzerland"]
[Date "2026.07.16"]
[Round "4.38"]
[White "Gerrits, Augustin"]
[Black "Berezovskii, Arina"]
[Result "1/2-1/2"]
[TimeControl "100+30+30sec/move"]
[WhiteTitle "-"]
[BlackTitle "-"]
[WhiteFideId "285358"]
[BlackFideId "34449850"]
[WhiteElo "2072"]
[BlackElo "1906"]

1. e4 {[%clk 01:40:53]} {[%emt 00:00:07]} c6 {[%clk 01:40:55]} {[%emt
00:00:04]} 2. d4 {[%clk 01:40:47]} {[%emt 00:00:35]} d5 {[%clk 01:41:20]}
{[%emt 00:00:05]} 3. Nc3 {[%clk 01:40:31]} {[%emt 00:00:45]} dxe4 {[%clk
01:41:42]} {[%emt 00:00:09]} 4. Nxe4 {[%clk 01:40:30]} {[%emt 00:00:30]} Bf5
{[%clk 01:42:06]} {[%emt 00:00:07]} 5. Ng3 {[%clk 01:39:20]} {[%emt 00:01:39]}
Bg6 {[%clk 01:42:28]} {[%emt 00:00:09]} 6. h4 {[%clk 01:38:11]} {[%emt
00:01:39]} h6 {[%clk 01:42:52]} {[%emt 00:00:06]} 7. Be3 {[%clk 01:34:41]}
{[%emt 00:04:00]} e6 {[%clk 01:38:42]} {[%emt 00:04:41]} 8. N1e2 {[%clk
01:32:55]} {[%emt 00:02:16]} Nf6 {[%clk 01:33:03]} {[%emt 00:06:08]} 9. Nf4
{[%clk 01:32:02]} {[%emt 00:01:23]} Bh7 {[%clk 01:32:28]} {[%emt 00:01:05]} 10.
Bd3 {[%clk 01:30:52]} {[%emt 00:01:39]} Bxd3 {[%clk 01:31:53]} {[%emt
00:01:05]} 11. Qxd3 {[%clk 01:31:03]} {[%emt 00:00:19]} Be7 {[%clk 01:25:10]}
{[%emt 00:07:14]} 12. O-O-O {[%clk 01:22:46]} {[%emt 00:08:46]} Nbd7 {[%clk
01:16:10]} {[%emt 00:09:31]} 13. Kb1 {[%clk 01:15:20]} {[%emt 00:07:57]} Qc7
{[%clk 01:12:08]} {[%emt 00:04:31]} 14. c4 {[%clk 01:00:42]} {[%emt 00:15:08]}
O-O-O {[%clk 01:03:41]} {[%emt 00:08:57]} 15. h5 {[%clk 00:48:42]} {[%emt
00:12:29]} Kb8 {[%clk 00:59:00]} {[%emt 00:05:11]} 16. Qc2 {[%clk 00:38:29]}
{[%emt 00:10:44]} Ng4 {[%clk 00:54:28]} {[%emt 00:05:02]} 17. Bc1 {[%clk
00:35:55]} {[%emt 00:03:03]} Bd6 {[%clk 00:45:32]} {[%emt 00:09:27]} 18. Rh4
{[%clk 00:28:29]} {[%emt 00:07:56]} Ndf6 {[%clk 00:37:23]} {[%emt 00:08:39]} 19.
Ne4 {[%clk 00:20:30]} {[%emt 00:08:30]} Nxe4 {[%clk 00:27:07]} {[%emt
00:10:46]} 20. Rxg4 {[%clk 00:20:18]} {[%emt 00:00:41]} Nf6 {[%clk 00:24:57]}
{[%emt 00:02:40]} 21. Rh4 {[%clk 00:19:01]} {[%emt 00:01:47]} Qa5 {[%clk
00:20:50]} {[%emt 00:04:38]} 22. Rh3 {[%clk 00:13:54]} {[%emt 00:05:38]} Ka8
{[%clk 00:16:41]} {[%emt 00:04:38]} 23. Ne2 {[%clk 00:09:55]} {[%emt 00:04:29]}
e5 {[%clk 00:14:50]} {[%emt 00:02:21]} 24. c5 {[%clk 00:08:20]} {[%emt
00:02:05]} Bb8 {[%clk 00:14:15]} {[%emt 00:01:05]} 25. Ra3 {[%clk 00:07:46]}
{[%emt 00:01:05]} Qc7 {[%clk 00:14:19]} {[%emt 00:00:25]} 26. Bd2 {[%clk
00:05:13]} {[%emt 00:03:02]} Rd5 {[%clk 00:11:33]} {[%emt 00:03:16]} 27. Ba5
{[%clk 00:04:45]} {[%emt 00:00:58]} Qd7 {[%clk 00:10:47]} {[%emt 00:01:16]} 28.
Bb6 {[%clk 00:04:52]} {[%emt 00:00:24]} a6 {[%clk 00:10:02]} {[%emt 00:01:15]}
29. Rdd3 {[%clk 00:04:25]} {[%emt 00:00:57]} exd4 {[%clk 00:09:12]} {[%emt
00:01:21]} 30. Qc4 {[%clk 00:04:30]} {[%emt 00:00:23]} Re8 {[%clk 00:08:06]}
{[%emt 00:01:37]} 31. Nxd4 {[%clk 00:01:52]} {[%emt 00:03:07]} Re1+ {[%clk
00:07:18]} {[%emt 00:01:18]} 32. Kc2 {[%clk 00:02:20]} {[%emt 00:00:03]} Bf4
{[%clk 00:05:36]} {[%emt 00:02:12]} 33. Rac3 {[%clk 00:00:32]} {[%emt
00:02:18]} Re4 {[%clk 00:04:47]} {[%emt 00:01:18]} 34. Ra3 {[%clk 00:00:33]}
{[%emt 00:00:30]} Rexd4 {[%clk 00:04:13]} {[%emt 00:01:04]} 35. Rxa6+ {[%clk
00:00:35]} {[%emt 00:00:28]} bxa6 {[%clk 00:03:35]} {[%emt 00:01:08]} 36. Qxa6+
{[%clk 00:01:00]} {[%emt 00:00:04]} Kb8 {[%clk 00:03:59]} {[%emt 00:00:06]} 37.
Ba7+ {[%clk 00:01:24]} {[%emt 00:00:06]} Ka8 {[%clk 00:02:21]} {[%emt
00:02:08]} 38. Bb6+ {[%clk 00:01:50]} {[%emt 00:00:05]} Kb8 {[%clk 00:02:47]}
{[%emt 00:00:05]} 39. Ba7+ {[%clk 00:02:03]} {[%emt 00:00:17]} Ka8 {[%clk
00:00:39]} {[%emt 00:02:37]} 40. Bb6+ {[%clk 00:02:27]} {[%emt 00:00:05]} Kb8
{[%clk 00:00:54]} {[%emt 00:00:15]} 41. Ba7+ {[%emt 00:00:29]} 1/2-1/2

[Event "Masters Tournament (MTO)"]
[Site "Biel, Switzerland"]
[Date "2026.07.16"]
[Round "4.39"]
[White "Vedant, Nayudu"]
[Black "St Pierre, Joseph"]
[Result "0-1"]
[TimeControl "100+30+30sec/move"]
[WhiteTitle "-"]
[BlackTitle "-"]
[WhiteFideId "33369780"]
[BlackFideId "30953472"]
[WhiteElo "1797"]
[BlackElo "2067"]

1. e4 {[%clk 01:40:57]} {[%emt 00:00:01]} Nf6 {[%clk 01:40:45]} {[%emt
00:00:15]} 2. e5 {[%clk 01:41:21]} {[%emt 00:00:07]} Nd5 {[%emt 00:01:21]} 3.
d4 {[%clk 01:40:40]} d6 {[%clk 01:41:28]} {[%emt 00:00:06]} 4. exd6 {[%clk
01:34:42]} {[%emt 00:06:29]} cxd6 {[%clk 01:41:30]} {[%emt 00:00:28]} 5. Nf3
{[%clk 01:33:30]} {[%emt 00:01:43]} g6 {[%clk 01:41:47]} {[%emt 00:00:12]} 6.
c3 {[%clk 01:24:05]} {[%emt 00:09:56]} Bg7 {[%clk 01:42:05]} {[%emt 00:00:10]}
7. Be2 {[%clk 01:20:59]} {[%emt 00:03:37]} O-O {[%clk 01:42:19]} {[%emt
00:00:15]} 8. O-O {[%clk 01:21:26]} {[%emt 00:00:04]} Nc6 {[%clk 01:39:00]}
{[%emt 00:03:49]} 9. a4 {[%clk 01:17:32]} {[%emt 00:04:25]} Bf5 {[%clk
01:36:37]} {[%emt 00:02:51]} 10. Qb3 {[%clk 01:07:57]} {[%emt 00:10:06]} Nb6
{[%clk 01:24:00]} {[%emt 00:13:07]} 11. a5 {[%clk 00:56:19]} {[%emt 00:12:09]}
Nxa5 {[%clk 01:23:40]} {[%emt 00:00:49]} 12. Rxa5 {[%clk 00:54:59]} {[%emt
00:01:50]} Bxb1 {[%clk 01:24:03]} {[%emt 00:00:06]} 13. Be3 {[%clk 00:53:29]}
{[%emt 00:02:01]} Be4 {[%clk 01:21:16]} {[%emt 00:03:16]} 14. Rfa1 {[%clk
00:39:44]} {[%emt 00:14:16]} a6 {[%clk 01:11:28]} {[%emt 00:10:18]} 15. d5
{[%clk 00:36:54]} {[%emt 00:03:21]} Nd7 {[%clk 01:11:42]} {[%emt 00:00:15]} 16.
Nd2 {[%clk 00:31:03]} {[%emt 00:06:21]} Nf6 {[%clk 01:10:37]} {[%emt 00:01:34]}
17. Nxe4 {[%clk 00:26:42]} {[%emt 00:04:52]} Nxe4 {[%clk 01:10:55]} {[%emt
00:00:12]} 18. f3 {[%clk 00:21:09]} {[%emt 00:06:04]} Nc5 {[%clk 01:06:16]}
{[%emt 00:05:09]} 19. Bxc5 {[%clk 00:21:25]} {[%emt 00:00:14]} dxc5 {[%clk
01:06:39]} {[%emt 00:00:06]} 20. Rxc5 {[%clk 00:14:10]} {[%emt 00:07:45]} Qd6
{[%clk 01:06:09]} {[%emt 00:00:59]} 21. Qc4 {[%clk 00:11:44]} {[%emt 00:02:57]}
Be5 {[%clk 01:03:10]} {[%emt 00:03:27]} 22. g3 {[%clk 00:05:52]} {[%emt
00:06:24]} b5 {[%clk 00:55:20]} {[%emt 00:08:19]} 23. Qb4 {[%clk 00:05:39]}
{[%emt 00:00:43]} Qb6 {[%clk 00:55:04]} {[%emt 00:00:47]} 24. Kg2 {[%clk
00:02:45]} {[%emt 00:03:24]} Bd6 {[%clk 00:55:23]} {[%emt 00:00:10]} 25. Rc6
{[%clk 00:02:44]} {[%emt 00:00:32]} Qxc6 {[%clk 00:55:26]} {[%emt 00:00:27]} 26.
dxc6 {[%clk 00:03:10]} {[%emt 00:00:04]} Bxb4 {[%clk 00:55:49]} {[%emt
00:00:07]} 27. cxb4 {[%clk 00:03:39]} {[%emt 00:00:01]} Rfc8 {[%clk 00:55:56]}
{[%emt 00:00:22]} 28. Rc1 {[%clk 00:01:21]} {[%emt 00:02:49]} e5 {[%clk
00:56:15]} {[%emt 00:00:11]} 29. Bd3 {[%clk 00:00:41]} {[%emt 00:01:11]} Rc7
{[%clk 00:55:54]} {[%emt 00:00:50]} 30. g4 {[%clk 00:00:32]} {[%emt 00:00:39]}
Rac8 {[%clk 00:53:08]} {[%emt 00:03:16]} 31. Be4 {[%clk 00:00:46]} {[%emt
00:00:16]} f5 {[%clk 00:53:31]} {[%emt 00:00:07]} 32. Bd5+ {[%clk 00:00:37]}
{[%emt 00:00:39]} Kg7 {[%clk 00:53:34]} {[%emt 00:00:26]} 33. g5 {[%clk
00:00:37]} {[%emt 00:00:31]} Rd8 {[%clk 00:53:52]} {[%emt 00:00:11]} 34. Rc5
{[%clk 00:00:33]} {[%emt 00:00:35]} Kf8 {[%clk 00:53:46]} {[%emt 00:00:36]} 35.
Kf2 {[%clk 00:00:42]} {[%emt 00:00:21]} Ke7 {[%clk 00:53:59]} {[%emt 00:00:17]}
36. Ke3 {[%clk 00:00:32]} {[%emt 00:00:40]} Kd6 {[%clk 00:54:19]} {[%emt
00:00:10]} 37. h3 {[%clk 00:00:32]} {[%emt 00:00:30]} Re7 {[%clk 00:54:38]}
{[%emt 00:00:10]} 38. Rc2 {[%clk 00:00:32]} {[%emt 00:00:31]} Kc7 {[%clk
00:54:50]} {[%emt 00:00:18]} 39. Rd2 {[%clk 00:00:32]} {[%emt 00:00:31]} Rd6
{[%clk 00:54:21]} {[%emt 00:00:58]} 40. Rd1 {[%clk 00:00:31]} {[%emt 00:00:31]}
Re8 {[%clk 00:54:26]} {[%emt 00:00:24]} 41. Bf7 {[%clk 00:30:00]} {[%emt
00:00:32]} Rxd1 {[%clk 01:23:23]} {[%emt 00:01:33]} 42. Bxe8 {[%clk 00:30:51]}
{[%emt 00:00:09]} Rd4 {[%clk 01:23:31]} {[%emt 00:00:22]} 43. Kf2 {[%clk
00:28:01]} {[%emt 00:03:19]} Rd8 {[%clk 01:22:02]} {[%emt 00:02:00]} 44. Bd7
{[%clk 00:27:59]} {[%emt 00:00:32]} Rxd7 {[%clk 01:22:23]} {[%emt 00:00:09]} 45.
cxd7 {[%clk 00:28:16]} {[%emt 00:00:12]} Kxd7 {[%clk 01:22:50]} {[%emt
00:00:03]} 46. Ke3 {[%clk 00:26:09]} {[%emt 00:02:38]} Kd6 {[%clk 01:23:01]}
{[%emt 00:00:19]} 47. f4 {[%clk 00:22:11]} {[%emt 00:04:28]} Kd5 {[%clk
01:23:22]} {[%emt 00:00:08]} 48. b3 {[%clk 00:21:30]} {[%emt 00:01:11]} exf4+
{[%clk 01:23:32]} {[%emt 00:00:21]} 49. Kd3 {[%clk 00:21:18]} {[%emt 00:00:42]}
0-1